fUSD/lending_fUSD_20260418
["ID","MTS","AMOUNT","RATE_DAILY","PERIOD"]
[420714460,1776484234036,-881.95315356,9.418e-05,2]
[420714461,1776484234046,-881.95315356,9.418e-05,2]
[420714462,1776484234056,-881.95315356,9.418e-05,2]
[420714463,1776484234066,-881.95315356,9.418e-05,2]
[420714464,1776484234077,-881.95315356,9.418e-05,2]
[420714465,1776484234087,-881.95315356,9.418e-05,2]
[420714466,1776484234097,-881.95315356,9.418e-05,2]
[420714467,1776484234107,-881.95315356,9.418e-05,2]
[420714468,1776484234120,-881.95315356,9.418e-05,2]
[420714469,1776484234130,-881.95315356,9.418e-05,2]
[420714470,1776484234140,-881.95315356,9.418e-05,2]
[420714471,1776484234150,-881.95315356,9.418e-05,2]
[420714472,1776484234160,-881.95315356,9.418e-05,2]
[420714473,1776484234170,-881.95315356,9.418e-05,2]
[420714474,1776484234180,-881.95315356,9.418e-05,2]
[420714475,1776484234190,-881.95315356,9.418e-05,2]
[420714476,1776484234200,-881.95315356,9.418e-05,2]
[420714477,1776484234210,-881.95315356,9.418e-05,2]
[420714478,1776484234220,-881.95315356,9.418e-05,2]
[420714479,1776484234230,-881.95315356,9.418e-05,2]
[420714480,1776484234240,-881.95315356,9.418e-05,2]
[420714481,1776484234250,-881.95315356,9.418e-05,2]
[420714482,1776484234260,-500.0,9.42e-05,2]
[420714483,1776484234269,-500.0,9.42e-05,2]
[420714484,1776484234279,-500.0,9.42e-05,2]
[420714485,1776484234289,-150.0,9.42e-05,2]
[420714486,1776484234298,-82824.3050095,9.42e-05,2]
[420714487,1776484234312,-1262.346,9.42e-05,2]
[420714490,1776484237895,-1698.41755489,9.42e-05,2]
[420714491,1776484237908,-19427.47287327,9.42e-05,2]
[420714492,1776484237946,-2054.0,9.42e-05,2]
[420714493,1776484238055,-1450.80311392,9.42e-05,2]
[420714494,1776484238067,-53200.3487441,9.42e-05,2]
[420714495,1776484238078,-4688.52311579,9.42e-05,2]
[420714496,1776484238217,-72571.77432441,9.42e-05,2]
[420714497,1776484238230,-38705.1093591,9.42e-05,2]
[420714498,1776484238242,-265.37519513,9.42e-05,2]
[420714499,1776484238271,-4357.0,9.42e-05,2]
[420714628,1776484239812,-920.51348374,9.42e-05,2]
[420714635,1776484239865,-3046.82868942,9.42e-05,2]
[420714637,1776484239878,-2565.98624479,9.42e-05,2]
[420714640,1776484239890,-1087.996857,9.42e-05,2]
[420714642,1776484239901,-649.29216344,9.42e-05,2]
[420714645,1776484239923,-160669.9272715,9.42e-05,2]
[420714647,1776484239933,-235.0,9.424e-05,2]
[420714649,1776484239943,-1130.0,9.443e-05,2]
[420714651,1776484239953,-261.76,9.502e-05,2]
[420714653,1776484239962,-500.0,9.515e-05,2]
[420714655,1776484239972,-33057.2004,9.52e-05,2]
[420714657,1776484239982,-1000.0,9.52e-05,2]
[420714659,1776484239992,-255.0,9.561e-05,2]
[420714661,1776484240002,-168.58,9.62e-05,2]
[420714663,1776484240011,-150.0,9.72e-05,2]
[420714665,1776484240021,-152.0,9.722e-05,3]
[420714668,1776484240031,-451.0,9.752e-05,2]
[420714670,1776484240041,-181.0,9.772e-05,2]
[420714672,1776484240050,-261.76,9.776e-05,2]
[420714674,1776484240060,-425.16184594,9.788e-05,2]
[420714676,1776484240069,-1500.0,9.788e-05,2]
[420714678,1776484240079,-447.79758792,9.788e-05,2]
[420714680,1776484240088,-1500.0,9.788e-05,2]
[420714682,1776484240098,-164.11444377,9.788e-05,2]
[420714684,1776484240108,-973.0,9.791e-05,2]
[420714686,1776484240118,-1510.30622654,9.852e-05,2]
[420714688,1776484240127,-616.50841211,9.852e-05,2]
[420714690,1776484240137,-1500.0,9.852e-05,2]
[420714692,1776484240146,-150.0,9.861e-05,2]
[420714694,1776484240155,-415.0,9.935e-05,2]
[420714696,1776484240165,-298.0,9.955e-05,2]
[420714698,1776484240175,-200.0,9.968e-05,2]
[420714700,1776484240184,-489.16137119,9.974e-05,2]
[420714702,1776484240193,-367.75419019,0.0001,2]
[420714704,1776484240203,-322.50666573,0.0001,2]
[420714706,1776484240212,-151.0,0.0001,2]
[420714708,1776484240222,-151.0,0.0001,2]
[420714710,1776484240231,-151.0,0.0001,2]
[420714712,1776484240240,-151.0,0.0001,2]
[420714714,1776484240250,-151.0,0.0001,2]
[420714716,1776484240260,-151.0,0.0001,2]
[420714718,1776484240270,-151.0,0.0001,2]
[420714720,1776484240280,-151.0,0.0001,2]
[420714722,1776484240290,-239.84170459,0.0001,2]
[420714724,1776484240299,-339.0,0.0001,2]
[420714726,1776484240309,-339.0,0.0001,2]
[420714728,1776484240319,-339.04362611,0.0001,2]
[420714730,1776484240328,-1204.0,0.0001001,2]
[420714732,1776484240338,-150.0,0.0001002,2]
[420714734,1776484240347,-515.0,0.0001003,2]
[420714736,1776484240357,-1859.0,0.0001005,2]
[420714738,1776484240366,-261.76,0.0001005,2]
[420714740,1776484240376,-696.0,0.0001007,2]
[420714742,1776484240386,-361.2,0.00010084,2]
[420714744,1776484240395,-1273.0,0.0001009,2]
[420714746,1776484240405,-1063.0,0.0001011,2]
[420714748,1776484240415,-152.0,0.00010155,4]
[420714750,1776484240426,-182.0,0.00010202,2]
[420714752,1776484240435,-587.0,0.00010202,2]
[420714754,1776484240445,-2351.0,0.00010202,2]
[420714756,1776484240456,-261.76,0.00010324,2]
[420714758,1776484240467,-1504.3459789,0.00010336,2]
[420714761,1776484240477,-1498.60357492,0.00010336,2]
[420714763,1776484240487,-2000.0,0.00010337,2]
[420714765,1776484240497,-155.0,0.0001036,2]
[420714767,1776484240506,-179.07549354,0.00010377,2]
[420714769,1776484240515,-2000.0,0.000104,2]
[420714771,1776484240525,-433.0,0.00010517,2]
[420714773,1776484240534,-150.0,0.00010517,2]
[420714775,1776484240544,-152.0,0.00010587,5]
[420714777,1776484240554,-261.78602956,0.00010598,2]
[420714779,1776484240563,-1507.30215149,0.00010948,2]
[420714781,1776484240573,-500.0,0.00010958,2]
[420714783,1776484240582,-500.0,0.00010958,3]
[420714785,1776484240592,-500.0,0.00010958,4]
[420714787,1776484240601,-500.0,0.00010958,5]
[420714789,1776484240611,-500.0,0.00010958,6]
[420714791,1776484240621,-500.0,0.00010958,2]
[420714793,1776484240631,-500.0,0.00010958,3]
[420714795,1776484240640,-500.0,0.00010958,4]
[420714797,1776484240651,-273.0,0.00010958,2]
[420714799,1776484240660,-152.0,0.0001102,6]
[420714801,1776484240670,-152.0,0.0001102,5]
[420714803,1776484240679,-150.0,0.00011047,2]
[420714805,1776484240689,-150.0,0.00011047,2]
[420714807,1776484240699,-150.0,0.00011047,2]
[420714809,1776484240708,-150.0,0.00011047,2]
[420714811,1776484240719,-150.0,0.00011047,2]
[420714813,1776484240729,-150.0,0.00011047,2]
[420714815,1776484240739,-150.76576656,0.00011047,2]
[420714817,1776484240749,-150.56733902,0.00011047,2]
[420714819,1776484240759,-150.0,0.00011047,2]
[420714821,1776484240768,-151.03787674,0.00011047,2]
[420714823,1776484240777,-150.0,0.00011047,2]
[420714825,1776484240787,-150.0,0.00011047,2]
[420714827,1776484240796,-150.0,0.00011047,2]
[420714829,1776484240806,-250.0,0.00011047,2]
[420714831,1776484240816,-6490.17363224,0.00011099,2]
[420714833,1776484240827,-3292.0,0.00011222,2]
[420714834,1776484240836,-250.29448647,0.00011245,2]
[420714837,1776484240849,-252.0,0.00011263,2]
[420714838,1776484240859,-333.0,0.00011286,2]
[420714841,1776484240868,-150.0,0.00011292,2]
[420714843,1776484240878,-150.0,0.00011292,2]
[420714845,1776484240888,-418.0,0.00011308,2]
[420714847,1776484240898,-150.0,0.00011353,2]
[420714849,1776484240908,-2000.0,0.0001137,2]
[420714851,1776484240918,-1438.0,0.00011385,2]
[420714853,1776484240928,-361.2,0.00011415,2]
[420714855,1776484240938,-150.0,0.00011456,2]
[420714856,1776484240947,-14235.0,0.00011479,2]
[420714859,1776484240959,-939.86,0.00011507,2]
[420714861,1776484240969,-150.0,0.00011538,2]
[420714863,1776484240979,-150.0,0.00011538,2]
[420714865,1776484240994,-150.0,0.0001166,2]
[420714867,1776484241007,-500.0,0.000117,4]
[420714869,1776484241017,-150.0,0.00011783,2]
[420714871,1776484241027,-150.0,0.00011783,2]
[420714873,1776484241037,-1000.0,0.000118,4]
[420714875,1776484241047,-150.0,0.00011865,2]
[420714877,1776484241057,-1600.0,0.000119,4]
[420714879,1776484241067,-150.0,0.00011967,2]
[420714881,1776484241077,-150.0,0.00011995,2]
[420714883,1776484241086,-150.0,0.00012028,2]
[420714885,1776484241099,-150.0,0.00012028,2]
[420714887,1776484241110,-5000.0,0.00012176,2]
[420714889,1776484241119,-12685.34890756,0.00012228,2]
[420714890,1776484241129,-1118.14332543,0.00012228,2]
[420714892,1776484241139,-638.0,0.00012247,2]
[420714895,1776484241149,-441.4616214,0.00012266,2]
[420714897,1776484241159,-151.0,0.00012273,2]
[420714898,1776484241169,-272.37824658,0.00012274,2]
[420714901,1776484241181,-154.18753749,0.00012274,2]
[420714903,1776484241191,-153.51184745,0.00012274,2]
[420714904,1776484241201,-154.11355958,0.00012274,2]
[420714906,1776484241211,-150.0,0.00012274,2]
[420714908,1776484241221,-150.0,0.00012274,2]
[420714910,1776484241233,-228.14003435,0.00012274,2]
[420714912,1776484241243,-1.34614513,0.00012275,2]
[420714915,1776484241256,-431.98715083,0.00012275,2]
[420714917,1776484241269,-66.66670404,0.00012275,2]
[420714919,1776484241278,-300.0,0.00012275,2]
[420714921,1776484241288,-300.0,0.00012275,2]
[420714923,1776484241298,-300.0,0.00012275,2]
[420714925,1776484241308,-2147.49581849,0.00012276,2]
[420715048,1776484242727,-40156.01900556,0.00012276,2]
[420715049,1776484242759,-630.7737724,0.00012276,2]
[420715050,1776484242777,-1380.42346805,0.00012276,2]
[420715051,1776484242789,-458.87313864,0.00012276,2]
[420715053,1776484242800,-2265.75902318,0.00012276,2]
[420715055,1776484242811,-3575.413935,0.00012276,2]
[420715056,1776484242859,-66530.06152172,0.00012276,2]
[420715057,1776484242872,-133032.33614039,0.00012276,2]
[420715058,1776484242883,-22541.86563883,0.00012276,2]
[420715059,1776484242895,-1146.36127367,0.00012276,2]
[420715060,1776484242907,-272.24010028,0.00012276,2]
[420715061,1776484243122,-2619.9222051,0.00012276,2]
[420715065,1776484243242,-628.43809262,0.00012276,2]
[420715082,1776484245735,-23291.23450175,0.00012276,2]
[420715083,1776484245792,-3295.63656865,0.00012276,2]
[420715084,1776484245804,-698.06429377,0.00012276,2]
[420715085,1776484245816,-5045.47876192,0.00012276,2]
[420715086,1776484245827,-8339.91972622,0.00012276,2]
[420715087,1776484245839,-540.74393397,0.00012276,2]
[420715088,1776484245850,-370.45,0.00012276,2]
[420715089,1776484245908,-10083.20596379,0.00012276,2]
[420715090,1776484245920,-7171.41189107,0.00012276,2]
[420715091,1776484245931,-2644.85119074,0.00012276,2]
[420715092,1776484245942,-3143.55745,0.00012276,2]
[420715093,1776484245953,-366.86471231,0.00012276,2]
[420715094,1776484246190,-10288.81690806,0.00012276,2]
[420715095,1776484246202,-29500.65663588,0.00012276,2]
[420715096,1776484246214,-58841.1743212,0.00012276,2]
[420715097,1776484246226,-1280.3099978,0.00012276,2]
[420715098,1776484246254,-5663.30637849,0.00012276,2]
[420715099,1776484246267,-1198.88729769,0.00012276,2]
[420715100,1776484246292,-243262.74934196,0.00012276,2]
[420715115,1776484554898,276.72,8.145e-05,30]
[420715116,1776484554949,276.72,8.145e-05,30]
[420715127,1776485347127,-251.0,7.742e-05,2]
[420715128,1776485347150,-150.0,7.742e-05,2]
[420715129,1776485347172,-150.0,7.742e-05,2]
[420715130,1776485347193,-150.0,7.742e-05,2]
[420715131,1776485347215,-150.0,7.742e-05,2]
[420715132,1776485347239,-150.0,7.742e-05,2]
[420715133,1776485347262,-150.0,7.742e-05,2]
[420715134,1776485347284,-150.0,7.742e-05,2]
[420715135,1776485347305,-35.7291445,8.145e-05,2]
[420715177,1776485438070,-464.2708555,8.145e-05,2]
[420715181,1776485438083,-250.96,8.219e-05,2]
[420715185,1776485438095,-276.72,8.483e-05,30]
[420715188,1776485438108,-282.53130712,8.483e-05,2]
[420715190,1776485438120,-1200.0,8.505e-05,2]
[420715191,1776485438131,-300.0,8.505e-05,2]
[420715192,1776485438143,-850.77233205,8.505e-05,2]
[420715193,1776485438154,-1000.0,8.505e-05,2]
[420715194,1776485438165,-276.72,8.506e-05,30]
[420715195,1776485438177,-500.0,8.506e-05,2]
[420715196,1776485438188,-500.0,8.506e-05,2]
[420715197,1776485438200,-500.0,8.506e-05,2]
[420715198,1776485438211,-500.0,8.506e-05,2]
[420715199,1776485438222,-244.76085921,8.506e-05,2]
[420715200,1776485438234,-500.0,8.506e-05,2]
[420715201,1776485438245,-500.0,8.506e-05,2]
[420715202,1776485438257,-500.0,8.506e-05,2]
[420715203,1776485438272,-500.0,8.506e-05,2]
[420715204,1776485438283,-500.0,8.506e-05,2]
[420715205,1776485438296,-500.0,8.506e-05,2]
[420715206,1776485438310,-500.0,8.506e-05,2]
[420715207,1776485438323,-500.0,8.506e-05,2]
[420715208,1776485438336,-500.0,8.506e-05,2]
[420715209,1776485438348,-500.0,8.506e-05,2]
[420715210,1776485438360,-500.0,8.506e-05,2]
[420715211,1776485438373,-500.0,8.506e-05,2]
[420715212,1776485438385,-500.0,8.506e-05,2]
[420715213,1776485438396,-500.0,8.506e-05,2]
[420715214,1776485438408,-500.0,8.506e-05,2]
[420715215,1776485438421,-3683.533,8.506e-05,2]
[420715216,1776485438433,-221.834,8.506e-05,2]
[420715217,1776485438445,-8036.43515678,8.506e-05,2]
[420715218,1776485438457,-250.0,8.506e-05,2]
[420715219,1776485438468,-250.0,8.516e-05,2]
[420715220,1776485438481,-250.0,8.516e-05,2]
[420715221,1776485438494,-5051.52787188,8.516e-05,2]
[420715222,1776485438506,-250.0,8.516e-05,2]
[420715223,1776485438519,-231.0,8.571e-05,2]
[420715224,1776485438531,-1067.0,8.588e-05,2]
[420715225,1776485438543,-150.0,8.603e-05,2]
[420715226,1776485438555,-150.0,8.603e-05,2]
[420715227,1776485438567,-1215.0,8.641e-05,2]
[420715228,1776485438579,-7860.25,8.667e-05,2]
[420715229,1776485438591,-160.22826104,8.674e-05,2]
[420715230,1776485438602,-500.0,8.773e-05,2]
[420715232,1776485438613,-300.0,8.8e-05,3]
[420715234,1776485438623,-1361.0,8.819e-05,2]
[420715236,1776485438635,-321.0,8.884e-05,2]
[420715238,1776485438645,-700.0,8.9e-05,3]
[420715240,1776485438656,-940.0,8.901e-05,2]
[420715242,1776485438667,-850.77233205,8.93e-05,2]
[420715244,1776485438678,-1100.0,9e-05,3]
[420715246,1776485438689,-1600.0,9.186e-05,2]
[420715248,1776485438700,-33073.7314,9.32e-05,2]
[420715251,1776485438711,-420.0,9.355e-05,2]
[420715253,1776485438721,-1680.0,9.355e-05,2]
[420715255,1776485438732,-200.0,9.8e-05,2]
[420715257,1776485438744,-490.4425041,0.0001,2]
[420715259,1776485438755,-175.65615082,0.0001,2]
[420715262,1776485438766,-200.0,0.0001,2]
[420715264,1776485438777,-151.0,0.0001,2]
[420715266,1776485438789,-500.0,0.0001,2]
[420715268,1776485438800,-151.0,0.0001,2]
[420715270,1776485438811,-151.0,0.0001,2]
[420715273,1776485438823,-500.0,0.0001,2]
[420715275,1776485438834,-151.0,0.0001,2]
[420715277,1776485438845,-500.0,0.0001,2]
[420715279,1776485438856,-151.0,0.0001,2]
[420715281,1776485438867,-500.0,0.0001,2]
[420715284,1776485438879,-151.0,0.0001,2]
[420715286,1776485438889,-500.0,0.0001,2]
[420715288,1776485438900,-151.0,0.0001,2]
[420715290,1776485438911,-500.0,0.0001,2]
[420715292,1776485438922,-151.0,0.0001,2]
[420715294,1776485438933,-500.0,0.0001,2]
[420715297,1776485438945,-151.0,0.0001,2]
[420715299,1776485438957,-151.0,0.0001,2]
[420715301,1776485438968,-500.0,0.0001,2]
[420715303,1776485438979,-151.0,0.0001,2]
[420715305,1776485438990,-500.0,0.0001,2]
[420715307,1776485439002,-151.0,0.0001,2]
[420715309,1776485439013,-500.0,0.0001,2]
[420715311,1776485439026,-151.0,0.0001,2]
[420715313,1776485439039,-500.0,0.0001,2]
[420715314,1776485439050,-500.0,0.0001,2]
[420715315,1776485439061,-500.0,0.0001,2]
[420715316,1776485439072,-500.0,0.0001,2]
[420715317,1776485439083,-500.0,0.0001,2]
[420715318,1776485439094,-500.0,0.0001,2]
[420715319,1776485439107,-500.0,0.0001,2]
[420715320,1776485439119,-500.0,0.0001,2]
[420715321,1776485439131,-500.0,0.0001,2]
[420715322,1776485439142,-500.0,0.0001,2]
[420715323,1776485439154,-500.0,0.0001,2]
[420715324,1776485439167,-500.0,0.0001,2]
[420715325,1776485439178,-500.0,0.0001,2]
[420715326,1776485439190,-500.0,0.0001,2]
[420715327,1776485439202,-500.0,0.0001,2]
[420715328,1776485439214,-500.0,0.0001,2]
[420715329,1776485439227,-151.0,0.0001,2]
[420715330,1776485439238,-587.0,0.00010291,2]
[420715331,1776485439250,-1146.0,0.00010291,2]
[420715332,1776485439263,-51728.02280233,0.000103,2]
[420715333,1776485439309,-1303.36355312,0.000103,2]
[420715334,1776485439326,-373.21146585,0.000103,2]
[420715339,1776485441873,-850.77233205,9.355e-05,2]
[420715340,1776485441883,-44552.98555435,0.000103,2]
[420715374,1776485443303,-4694.93067227,0.000103,2]
[420715375,1776485443315,-294.94355272,0.000103,2]
[420715376,1776485443361,-989.29856,0.000103,2]
[420715377,1776485443373,-887.00102635,0.000103,2]
[420715382,1776485446106,-272.64360022,0.000103,2]
[420715383,1776485446324,-301.288428,0.000103,2]
[420715384,1776485446543,-13004.66814329,0.000103,2]
[420715831,1776485769188,-377.94,7.642e-05,2]
[420715832,1776485769212,-72.06370349,7.642e-05,2]
[420715866,1776486054916,745.504,7.642e-05,30]
[420715867,1776486055561,745.504,8.074e-05,30]
[420715868,1776486065872,-169.53,7.436e-05,2]
[420715869,1776486065895,-123.8736058,7.436e-05,2]
[420715877,1776486559275,-621.6303942,7.436e-05,2]
[420715878,1776486559304,-91.65891512,7.642e-05,2]
[420715887,1776486632549,-292.91733824,8.407e-05,30]
[420715888,1776486632724,-452.58666176,8.407e-05,30]
[420715889,1776486632734,-252.68510622,8.456e-05,2]
[420715890,1776486632743,-163.72261861,8.506e-05,30]
[420715891,1776486632754,-249.74844261,8.506e-05,2]
[420715892,1776486632763,-163.72261861,8.507e-05,30]
[420715893,1776486632773,-500.0,8.685e-05,2]
[420715894,1776486632782,-500.0,8.883e-05,3]
[420715895,1776486632792,-200.0,8.915e-05,2]
[420715896,1776486632802,-300.0,8.957e-05,2]
[420715897,1776486632812,-499.61302066,8.957e-05,2]
[420715898,1776486632824,-571.24628882,8.957e-05,2]
[420715899,1776486632889,-129.14069052,8.957e-05,2]
[420715900,1776486632899,-13905.16,8.958e-05,2]
[420715901,1776486632908,-1825.17,9.076e-05,2]
[420715902,1776486632917,-13058.08,9.115e-05,2]
[420715903,1776486632927,-150.0,9.173e-05,2]
[420715904,1776486632937,-150.0,9.173e-05,2]
[420715905,1776486632946,-150.0,9.173e-05,2]
[420715906,1776486632955,-150.0,9.173e-05,2]
[420715907,1776486632965,-150.0,9.173e-05,2]
[420715908,1776486632975,-200.0,9.2e-05,2]
[420715909,1776486632984,-250.0,9.247e-05,2]
[420715910,1776486632993,-163.72261861,9.357e-05,30]
[420715911,1776486633003,-200.0,9.5e-05,2]
[420715912,1776486633013,-1028.61,9.507e-05,2]
[420715913,1776486633022,-200.0,9.7e-05,3]
[420715914,1776486633032,-500.0,9.8e-05,3]
[420715915,1776486633041,-420.0,9.852e-05,2]
[420715916,1776486633051,-800.0,9.9e-05,3]
[420715917,1776486633061,-1500.0,9.949e-05,2]
[420715918,1776486633070,-150.0,9.982e-05,2]
[420715919,1776486633080,-167.0,0.0001,2]
[420715920,1776486633090,-169.65,0.0001,2]
[420715921,1776486633099,-2791.97865201,0.0001,2]
[420715922,1776486633109,-1000.0,0.0001,3]
[420715923,1776486633119,-150.0,0.00010098,2]
[420715924,1776486633129,-2500.0,0.00010099,2]
[420715925,1776486633139,-5000.0,0.00010099,2]
[420715926,1776486633149,-2213.90916676,0.00010099,2]
[420715927,1776486633159,-745.42888362,0.00010101,2]
[420715928,1776486633168,-502.14384265,0.00010173,2]
[420715929,1776486633178,-500.0,0.00010173,2]
[420715930,1776486633188,-150.0,0.00010192,2]
[420715931,1776486633198,-200.0,0.00010192,2]
[420715932,1776486633208,-500.0,0.00010192,2]
[420715933,1776486633218,-151.0,0.00010192,2]
[420715934,1776486633227,-500.0,0.00010192,2]
[420715935,1776486633236,-151.0,0.00010192,2]
[420715936,1776486633247,-500.0,0.00010192,2]
[420715937,1776486633257,-151.0,0.00010192,2]
[420715938,1776486633266,-500.0,0.00010192,2]
[420715939,1776486633276,-151.0,0.00010192,2]
[420715940,1776486633286,-500.0,0.00010192,2]
[420715941,1776486633295,-500.0,0.00010192,2]
[420715942,1776486633306,-151.0,0.00010192,2]
[420715943,1776486633316,-500.0,0.00010192,2]
[420715944,1776486633326,-151.0,0.00010192,2]
[420715945,1776486633335,-500.0,0.00010192,2]
[420715946,1776486633344,-151.0,0.00010192,2]
[420715947,1776486633354,-500.0,0.00010192,2]
[420715948,1776486633363,-151.0,0.00010192,2]
[420715949,1776486633373,-151.0,0.00010192,2]
[420715950,1776486633382,-151.0,0.00010192,2]
[420715951,1776486633393,-151.0,0.00010192,2]
[420715952,1776486633402,-151.0,0.00010192,2]
[420715953,1776486633413,-151.0,0.00010192,2]
[420715954,1776486633423,-500.0,0.00010192,2]
[420715955,1776486633434,-500.0,0.00010192,2]
[420715956,1776486633444,-500.0,0.00010192,2]
[420715957,1776486633454,-500.0,0.00010192,2]
[420715958,1776486633463,-500.0,0.00010192,2]
[420715959,1776486633473,-500.0,0.00010192,2]
[420715960,1776486633482,-500.0,0.00010192,2]
[420715961,1776486633494,-500.0,0.00010192,2]
[420715962,1776486633504,-500.0,0.00010192,2]
[420715963,1776486633514,-567.31219984,0.00010192,2]
[420715964,1776486633523,-500.0,0.00010192,2]
[420715965,1776486633533,-500.0,0.00010192,2]
[420715966,1776486633542,-500.0,0.00010192,2]
[420715967,1776486633552,-500.0,0.00010192,2]
[420715968,1776486633562,-172.77066582,0.00010192,2]
[420715969,1776486633571,-151.0,0.00010192,2]
[420715970,1776486633582,-153.85445399,0.00010192,2]
[420715971,1776486633591,-1000.0,0.00010193,2]
[420715972,1776486633601,-223.45,0.00010194,2]
[420715973,1776486633610,-267.0,0.00010195,7]
[420715974,1776486633621,-3388.568,0.00010197,2]
[420715975,1776486633632,-210.768,0.00010197,2]
[420715976,1776486633642,-250.0,0.00010198,2]
[420715977,1776486633651,-362.72908949,0.00010198,2]
[420715978,1776486633661,-500.0,0.00010198,2]
[420715979,1776486633670,-500.0,0.00010198,2]
[420715980,1776486633680,-265.7395141,0.00010198,2]
[420715981,1776486633690,-195.88571657,0.00010198,2]
[420715982,1776486633700,-500.0,0.00010198,2]
[420715983,1776486633710,-500.0,0.00010198,2]
[420715984,1776486633719,-500.0,0.00010198,2]
[420715985,1776486633729,-500.0,0.00010198,2]
[420715986,1776486633739,-487.06154671,0.00010198,2]
[420715987,1776486633748,-1000.0,0.00010199,2]
[420715988,1776486633758,-987544.9863,0.00010199,2]
[420715989,1776486633767,-500.0,0.00010199,2]
[420715990,1776486633777,-500.0,0.00010199,2]
[420715991,1776486633786,-500.0,0.00010199,2]
[420715992,1776486633795,-500.0,0.00010199,2]
[420715993,1776486633804,-500.0,0.00010199,2]
[420715994,1776486633814,-500.0,0.00010199,2]
[420715995,1776486633824,-500.0,0.00010199,2]
[420715996,1776486633834,-500.0,0.00010199,2]
[420715997,1776486633843,-500.0,0.00010199,2]
[420715998,1776486633852,-500.0,0.00010199,2]
[420715999,1776486633862,-500.0,0.00010199,2]
[420716000,1776486633872,-500.0,0.00010199,2]
[420716001,1776486633882,-500.0,0.00010199,2]
[420716002,1776486633892,-500.0,0.00010199,2]
[420716003,1776486633902,-500.0,0.00010199,2]
[420716004,1776486633911,-500.0,0.00010199,2]
[420716005,1776486633920,-217.252306,0.00010199,2]
[420716006,1776486633931,-167.0,0.000102,2]
[420716007,1776486633941,-203395.59085404,0.000102,2]
[420716008,1776486633954,-3164.52485494,0.000102,2]
[420716009,1776486633965,-11522.15566911,0.000102,2]
[420716010,1776486633977,-19052.15083606,0.000102,2]
[420716011,1776486633989,-654.72900572,0.000102,2]
[420716012,1776486634001,-1403.85738872,0.000102,2]
[420716013,1776486634012,-271.17317545,0.000102,2]
[420716014,1776486634088,-407.7875021,0.000102,2]
[420716015,1776486634117,-642.66088036,0.00010198,2]
[420716016,1776486634127,-994.83595909,0.000102,2]
[420716017,1776486634139,-689.16136204,0.000102,2]
[420716018,1776486634150,-5218.79958262,0.000102,2]
[420716019,1776486634162,-2726.52883703,0.000102,2]
[420716020,1776486634173,-530.57794545,0.000102,2]
[420716022,1776486638934,-500.0,0.00010198,2]
[420716023,1776486638945,-500.0,0.00010198,2]
[420716024,1776486638955,-500.0,0.00010198,2]
[420716025,1776486638965,-2374.33099142,0.000102,2]
[420716026,1776486638978,-1492.8292,0.000102,2]
[420716027,1776486638991,-894.18259052,0.000102,2]
[420716028,1776486639002,-40370.29201201,0.000102,2]
[420716029,1776486639055,-421.5,0.000102,2]
[420716030,1776486639170,-4131.57449147,0.000102,2]
[420716031,1776486639182,-650.24869359,0.000102,2]
[420716044,1776486640481,-294.3077476,0.0001019,2]
[420716045,1776486640491,-14696.39136881,0.000102,2]
[420716046,1776486640502,-2943.95635846,0.000102,2]
[420716047,1776486640514,-5239.89376426,0.000102,2]
[420716048,1776486640526,-3229.60697945,0.000102,2]
[420716049,1776486640537,-14563.74441144,0.000102,2]
[420716050,1776486640549,-15796.8,0.000102,2]
[420716051,1776486640560,-744.9972336,0.000102,2]